lending/lending_fUSD_20240112
["ID","MTS","AMOUNT","RATE_DAILY","PERIOD"]
[311358261,1705067488382,-500.0,0.00024229,2]
[311358262,1705067488393,-941.84,0.00024229,2]
[311358263,1705067488403,-703.36,0.00024229,2]
[311358264,1705067488414,-500.0,0.00024229,2]
[311358265,1705067488424,-580.21,0.00024229,2]
[311358266,1705067488434,-500.0,0.00024229,2]
[311358267,1705067488445,-22278.0,0.00024229,2]
[311358268,1705067488459,-500.0,0.00024229,2]
[311358269,1705067488470,-2697.74,0.00024229,2]
[311358270,1705067488480,-2896.08,0.00024229,2]
[311358271,1705067488490,-1033.16,0.00024229,2]
[311358272,1705067488501,-500.0,0.00024229,2]
[311358273,1705067488511,-1299.72,0.00024229,2]
[311358274,1705067488521,-1239.07,0.00024229,2]
[311358275,1705067488530,-994.29,0.00024229,2]
[311358276,1705067488542,-2369.38,0.00024229,2]
[311358277,1705067488551,-500.0,0.00024229,2]
[311358278,1705067488561,-500.0,0.00024229,2]
[311358279,1705067488571,-508.66,0.00024229,2]
[311358280,1705067488582,-500.0,0.00024229,2]
[311358281,1705067488591,-500.0,0.00024229,2]
[311358282,1705067488601,-500.0,0.00024229,2]
[311358283,1705067488613,-500.0,0.00024229,2]
[311358284,1705067488623,-500.0,0.00024229,2]
[311358285,1705067488633,-6520.81,0.00024229,2]
[311358286,1705067488644,-1237.49,0.00024229,2]
[311358287,1705067488654,-720.97,0.00024229,2]
[311358288,1705067488665,-4021.3,0.00024229,2]
[311358289,1705067488676,-500.0,0.00024229,2]
[311358290,1705067488686,-416.68,0.00024229,2]
[311358291,1705067488697,-1358.89,0.00024229,2]
[311358292,1705067488708,-2605.83,0.00024229,2]
[311358293,1705067488718,-556.6,0.00024229,2]
[311358294,1705067488728,-1356.18,0.00024229,2]
[311358295,1705067488738,-500.0,0.00024229,2]
[311358296,1705067488748,-500.0,0.00024229,2]
[311358297,1705067488758,-500.0,0.00024229,2]
[311358298,1705067488768,-519.89,0.00024229,2]
[311358299,1705067488778,-2784.68,0.00024229,2]
[311358300,1705067488789,-709.85,0.00024229,2]
[311358301,1705067488800,-500.0,0.00024229,2]
[311358302,1705067488809,-500.0,0.00024229,2]
[311358303,1705067488819,-974.42,0.00024229,2]
[311358304,1705067488829,-2294.01,0.00024229,2]
[311358305,1705067488839,-500.0,0.00024229,2]
[311358306,1705067488849,-500.0,0.00024229,2]
[311358307,1705067488859,-500.0,0.00024229,2]
[311358308,1705067488869,-1586.88,0.00024229,2]
[311358309,1705067488879,-1607.34,0.00024229,2]
[311358310,1705067488889,-1000.0,0.00024229,2]
[311358311,1705067488900,-500.0,0.00024229,2]
[311358312,1705067488910,-892.72,0.00024229,2]
[311358313,1705067488921,-1286.7,0.00024229,2]
[311358314,1705067488931,-500.0,0.00024229,2]
[311358315,1705067488941,-500.0,0.00024229,2]
[311358316,1705067488951,-500.0,0.00024229,2]
[311358317,1705067488962,-500.0,0.00024229,2]
[311358318,1705067488972,-563.27,0.00024229,2]
[311358319,1705067488982,-500.0,0.00024229,2]
[311358320,1705067488992,-500.0,0.00024229,2]
[311358321,1705067489002,-500.0,0.00024229,2]
[311358322,1705067489011,-834.9,0.00024229,2]
[311358323,1705067489022,-1002.65,0.00024229,2]
[311358324,1705067489033,-500.0,0.00024229,2]
[311358325,1705067489045,-500.0,0.00024229,2]
[311358326,1705067489056,-13676.69,0.00024229,2]
[311358327,1705067489066,-1317.28,0.00024229,2]
[311358328,1705067489077,-500.0,0.00024229,2]
[311358329,1705067489087,-500.0,0.00024229,2]
[311358330,1705067489097,-500.0,0.00024229,2]
[311358331,1705067489108,-500.0,0.00024229,2]
[311358332,1705067489118,-771.85,0.00024229,2]
[311358333,1705067489128,-1642.76,0.00024229,2]
[311358334,1705067489139,-601.82,0.00024229,2]
[311358335,1705067489152,-500.0,0.00024229,2]
[311358336,1705067489162,-5698.97,0.00024229,2]
[311358337,1705067489173,-1051.05,0.00024229,2]
[311358338,1705067489185,-577.98,0.00024229,2]
[311358339,1705067489196,-852.82,0.00024229,2]
[311358340,1705067489209,-697.59,0.00024229,2]
[311358341,1705067489221,-1233.03,0.00024229,2]
[311358342,1705067489233,-500.0,0.00024229,2]
[311358343,1705067489245,-500.0,0.00024229,2]
[311358344,1705067489256,-500.0,0.00024229,2]
[311358345,1705067489267,-2538.76,0.00024229,2]
[311358346,1705067489279,-1405.14,0.00024229,2]
[311358347,1705067489291,-673.52,0.00024229,2]
[311358348,1705067489303,-2213.37,0.00024229,2]
[311358349,1705067489315,-500.0,0.00024229,2]
[311358350,1705067489327,-500.0,0.00024229,2]
[311358351,1705067489339,-14904.63,0.00024229,2]
[311358352,1705067489352,-1129.13,0.00024229,2]
[311358353,1705067489363,-1026.68,0.00024229,2]
[311358354,1705067489375,-500.0,0.00024229,2]
[311358355,1705067489387,-3836.53,0.00024229,2]
[311358356,1705067489398,-848.03,0.00024229,2]
[311358357,1705067489410,-500.0,0.00024229,2]
[311358358,1705067489421,-500.0,0.00024229,2]
[311358359,1705067489433,-717.68,0.00024229,2]
[311358360,1705067489444,-1579.12,0.00024229,2]
[311358361,1705067489455,-500.0,0.00024229,2]
[311358362,1705067489466,-500.0,0.00024229,2]
[311358363,1705067489477,-500.0,0.00024229,2]
[311358364,1705067489488,-500.0,0.00024229,2]
[311358365,1705067489498,-1016.89,0.00024229,2]
[311358366,1705067489509,-1273.06,0.00024229,2]
[311358367,1705067489520,-500.0,0.00024229,2]
[311358368,1705067489531,-1990.06,0.00024229,2]
[311358369,1705067489543,-226.96337727,0.00024229,2]
[311358370,1705067489555,-500.0,0.00024229,2]
[311358371,1705067489567,-642.71,0.00024229,2]
[311358372,1705067489579,-1962.61,0.00024229,2]
[311358373,1705067489591,-3858.89,0.00024229,2]
[311358374,1705067489603,-1731.39,0.00024229,2]
[311358375,1705067489614,-830.92,0.00024229,2]
[311358376,1705067489625,-1448.83,0.00024229,2]
[311358377,1705067489637,-500.0,0.00024229,2]
[311358378,1705067489648,-500.0,0.00024229,2]
[311358379,1705067489660,-899.04,0.00024229,2]
[311358380,1705067489671,-673.69,0.00024229,2]
[311358381,1705067489683,-500.0,0.00024229,2]
[311358382,1705067489695,-699.58,0.00024229,2]
[311358383,1705067489706,-2683.93,0.00024229,2]
[311358384,1705067489718,-4923.06,0.00024229,2]
[311358385,1705067489730,-2940.73,0.00024229,2]
[311358386,1705067489741,-500.0,0.00024229,2]
[311358387,1705067489753,-500.0,0.00024229,2]
[311358388,1705067489765,-660.73,0.00024229,2]
[311358389,1705067489776,-1814.82,0.00024229,2]
[311358390,1705067489788,-538.20850045,0.00024229,2]
[311358391,1705067489805,-1795.65,0.00024229,2]
[311358392,1705067489816,-500.0,0.00024229,2]
[311358393,1705067489827,-500.0,0.00024229,2]
[311358394,1705067489838,-500.0,0.00024229,2]
[311358395,1705067489851,-500.0,0.00024229,2]
[311358396,1705067489863,-788.12,0.00024229,2]
[311358397,1705067489876,-2878.51,0.00024229,2]
[311358398,1705067489889,-1029.85,0.00024229,2]
[311358399,1705067489901,-500.0,0.0002423,2]
[311358400,1705067489912,-500.0,0.0002423,2]
[311358401,1705067489924,-500.0,0.0002423,2]
[311358402,1705067489935,-344.19,0.0002423,2]
[311358403,1705067489945,-500.0,0.0002423,2]
[311358404,1705067489957,-500.0,0.0002423,2]
[311358405,1705067489968,-500.0,0.0002423,2]
[311358406,1705067489979,-500.0,0.0002423,2]
[311358407,1705067489990,-500.0,0.0002423,2]
[311358408,1705067490001,-500.0,0.0002423,2]
[311358409,1705067490012,-500.0,0.0002423,2]
[311358410,1705067490023,-500.0,0.0002423,2]
[311358411,1705067490034,-500.0,0.0002423,2]
[311358412,1705067490048,-500.0,0.0002423,2]
[311358413,1705067490060,-500.0,0.0002423,2]
[311358414,1705067490071,-500.0,0.0002423,2]
[311358415,1705067490082,-500.0,0.0002423,2]
[311358416,1705067490093,-500.0,0.0002423,2]
[311358417,1705067490103,-500.0,0.0002423,2]
[311358418,1705067490114,-317.88,0.0002423,2]
[311358419,1705067490125,-500.0,0.0002423,2]
[311358420,1705067490135,-500.0,0.0002423,2]
[311358421,1705067490147,-500.0,0.0002423,2]
[311358422,1705067490159,-617.55,0.0002423,2]
[311358423,1705067490170,-500.0,0.0002423,2]
[311358424,1705067490181,-500.0,0.0002423,2]
[311358425,1705067490192,-340.07,0.0002423,2]
[311358426,1705067490203,-500.0,0.0002423,2]
[311358427,1705067490214,-500.0,0.0002423,2]
[311358428,1705067490226,-500.0,0.0002423,2]
[311358429,1705067490237,-500.0,0.0002423,2]
[311358430,1705067490248,-500.0,0.0002423,2]
[311358431,1705067490259,-500.0,0.0002423,2]
[311358432,1705067490270,-196.48,0.0002423,2]
[311358433,1705067490281,-500.0,0.0002423,2]
[311358434,1705067490293,-500.0,0.0002423,2]
[311358435,1705067490304,-411.44,0.0002423,2]
[311358436,1705067490315,-500.0,0.0002423,2]
[311358437,1705067490327,-500.0,0.0002423,2]
[311358438,1705067490621,-534.72,0.0002423,2]
[311358439,1705067490635,-192.55,0.0002423,2]
[311358440,1705067490645,-500.0,0.0002423,2]
[311358441,1705067490655,-500.0,0.0002423,2]
[311358442,1705067490667,-500.0,0.0002423,2]
[311358443,1705067490677,-500.0,0.0002423,2]
[311358444,1705067490688,-532.55,0.0002423,2]
[311358445,1705067490698,-571.03,0.0002423,2]
[311358446,1705067490709,-500.0,0.0002423,2]
[311358447,1705067490719,-500.0,0.0002423,2]
[311358448,1705067490729,-500.0,0.0002423,2]
[311358449,1705067490740,-452.56,0.0002423,2]
[311358450,1705067490751,-500.0,0.0002423,2]
[311358451,1705067490762,-500.0,0.0002423,2]
[311358452,1705067490772,-500.0,0.0002423,2]
[311358453,1705067490782,-250.0,0.0002423,2]
[311358454,1705067490795,-500.0,0.0002423,2]
[311358455,1705067490806,-312.55294192,0.0002423,2]
[311358456,1705067490816,-500.0,0.0002423,2]
[311358457,1705067490827,-414.88,0.0002423,2]
[311358458,1705067490837,-500.0,0.0002423,2]
[311358459,1705067490847,-374.96,0.0002423,2]
[311358460,1705067490856,-500.0,0.0002423,2]
[311358461,1705067490867,-500.0,0.0002423,2]
[311358462,1705067490877,-445.44,0.0002423,2]
[311358463,1705067490889,-500.0,0.0002423,2]
[311358464,1705067490899,-617.06,0.0002423,2]
[311358465,1705067490908,-500.0,0.0002423,2]
[311358466,1705067490918,-500.03,0.0002423,2]
[311358467,1705067490929,-500.0,0.0002423,2]
[311358468,1705067490940,-900.49,0.0002423,2]
[311358469,1705067490950,-500.0,0.0002423,2]
[311358470,1705067490961,-500.0,0.0002423,2]
[311358471,1705067490971,-500.0,0.0002423,2]
[311358472,1705067490981,-500.0,0.0002423,2]
[311358473,1705067490992,-500.0,0.0002423,2]
[311358474,1705067491003,-500.0,0.0002423,2]
[311358475,1705067491013,-580.22,0.0002423,2]
[311358476,1705067491024,-500.0,0.0002423,2]
[311358477,1705067491036,-500.0,0.0002423,2]
[311358478,1705067491053,-500.0,0.0002423,2]
[311358479,1705067491064,-500.0,0.0002423,2]
[311358480,1705067491081,-500.0,0.0002423,2]
[311358481,1705067491094,-500.0,0.0002423,2]
[311358482,1705067491104,-500.0,0.0002423,2]
[311358483,1705067491114,-500.0,0.0002423,2]
[311358484,1705067491125,-500.0,0.0002423,2]
[311358485,1705067491135,-500.0,0.0002423,2]
[311358486,1705067491149,-500.0,0.0002423,2]
[311358487,1705067491161,-500.0,0.0002423,2]
[311358488,1705067491171,-500.0,0.0002423,2]
[311358489,1705067491181,-988.76,0.0002423,2]
[311358490,1705067491192,-500.0,0.0002423,2]
[311358491,1705067491202,-500.0,0.0002423,2]
[311358492,1705067491213,-500.0,0.0002423,2]
[311358493,1705067491224,-500.0,0.0002423,2]
[311358494,1705067491234,-500.0,0.0002423,2]
[311358495,1705067491245,-536.8,0.0002423,2]
[311358496,1705067491255,-500.0,0.0002423,2]
[311358497,1705067491266,-676.74,0.0002423,2]
[311358498,1705067491276,-594.36,0.0002423,2]
[311358499,1705067491287,-500.0,0.0002423,2]
[311358500,1705067491300,-500.0,0.0002423,2]
[311358501,1705067491310,-500.0,0.0002423,2]
[311358502,1705067491321,-500.0,0.0002423,2]
[311358503,1705067491331,-572.67,0.0002423,2]
[311358504,1705067491342,-500.0,0.0002423,2]
[311358505,1705067491352,-500.0,0.0002423,2]
[311358506,1705067491362,-543.4,0.0002423,2]
[311358507,1705067491372,-500.0,0.0002423,2]
[311358508,1705067491382,-500.0,0.0002423,2]
[311358509,1705067491392,-686.86,0.0002423,2]
[311358510,1705067491404,-500.0,0.0002423,2]
[311358511,1705067491414,-500.0,0.0002423,2]
[311358512,1705067491425,-500.0,0.0002423,2]
[311358513,1705067491435,-513.03,0.0002423,2]
[311358514,1705067491446,-717.1,0.0002423,2]
[311358515,1705067491457,-500.0,0.0002423,2]
[311358516,1705067491467,-500.0,0.0002423,2]
[311358517,1705067491477,-915.79,0.0002423,2]
[311358518,1705067491487,-500.0,0.0002423,2]
[311358519,1705067491498,-628.12,0.0002423,2]
[311358520,1705067491508,-500.0,0.0002423,2]
[311358521,1705067491518,-500.0,0.0002423,2]
[311358522,1705067491529,-578.39,0.0002423,2]
[311358523,1705067491539,-500.0,0.0002423,2]
[311358524,1705067491551,-865.61,0.0002423,2]
[311358525,1705067491561,-500.0,0.0002423,2]
[311358526,1705067491571,-500.0,0.0002423,2]
[311358527,1705067491582,-500.0,0.0002423,2]
[311358528,1705067491592,-504.98,0.0002423,2]
[311358529,1705067491603,-500.0,0.0002423,2]
[311358530,1705067491613,-785.43,0.0002423,2]
[311358531,1705067491623,-500.0,0.0002423,2]
[311358532,1705067491633,-500.0,0.0002423,2]
[311358533,1705067491643,-500.0,0.0002423,2]
[311358534,1705067491654,-500.0,0.0002423,2]
[311358535,1705067491664,-500.0,0.0002423,2]
[311358536,1705067491674,-802.88,0.0002423,2]
[311358537,1705067491684,-592.6,0.0002423,2]
[311358538,1705067491695,-500.0,0.0002423,2]
[311358539,1705067491706,-1046.21,0.0002423,2]
[311358540,1705067491716,-500.0,0.0002423,2]
[311358541,1705067491726,-500.0,0.0002423,2]
[311358542,1705067491736,-1019.63,0.0002423,2]
[311358543,1705067491746,-501.58,0.0002423,2]
[311358544,1705067491757,-500.0,0.0002423,2]
[311358545,1705067491767,-500.0,0.0002423,2]
[311358546,1705067491778,-1762.58,0.0002423,2]
[311358547,1705067491787,-500.0,0.0002423,2]
[311358548,1705067491798,-500.0,0.0002423,2]
[311358549,1705067491809,-742.28,0.0002423,2]
[311358550,1705067491819,-500.0,0.0002423,2]
[311358551,1705067491829,-1000.0,0.0002423,2]
[311358552,1705067491840,-500.0,0.0002423,2]
[311358553,1705067491850,-500.0,0.0002423,2]
[311358554,1705067491861,-551.57,0.0002423,2]
[311358555,1705067491872,-544.63,0.0002423,2]
[311358556,1705067491882,-500.0,0.0002423,2]
[311358557,1705067491892,-500.0,0.0002423,2]
[311358558,1705067491902,-500.0,0.0002423,2]
[311358559,1705067491912,-500.0,0.0002423,2]
[311358560,1705067491923,-497.85735174,0.0002423,2]
[311358561,1705067491933,-511.99,0.0002423,2]
[311358562,1705067491944,-500.0,0.0002423,2]
[311358563,1705067491954,-500.0,0.0002423,2]
[311358564,1705067491965,-500.0,0.0002423,2]
[311358565,1705067491975,-500.0,0.0002423,2]
[311358566,1705067491985,-513.65,0.0002423,2]
[311358567,1705067491996,-500.0,0.0002423,2]
[311358568,1705067492006,-500.0,0.0002423,2]
[311358569,1705067492017,-500.0,0.0002423,2]
[311358570,1705067492027,-500.0,0.0002423,2]
[311358571,1705067492038,-500.0,0.0002423,2]
[311358572,1705067492051,-500.0,0.0002423,2]
[311358573,1705067492061,-500.0,0.0002423,2]
[311358574,1705067492071,-522.55,0.0002423,2]
[311358575,1705067492082,-683.51,0.0002423,2]
[311358576,1705067492093,-500.0,0.0002423,2]
[311358577,1705067492104,-924.0,0.0002423,2]
[311358578,1705067492114,-449.19217463,0.0002423,2]
[311358579,1705067492124,-500.0,0.0002423,2]
[311358580,1705067492135,-500.0,0.0002423,2]
[311358581,1705067492149,-500.0,0.0002423,2]
[311358582,1705067492159,-677.56,0.0002423,2]
[311358583,1705067492169,-500.0,0.0002423,2]
[311358584,1705067492179,-500.0,0.0002423,2]
[311358585,1705067492191,-500.0,0.0002423,2]
[311358586,1705067492201,-500.0,0.0002423,2]
[311358587,1705067492212,-500.0,0.0002423,2]
[311358588,1705067492222,-500.0,0.0002423,2]
[311358589,1705067492234,-612.68,0.0002423,2]
[311358590,1705067492246,-500.0,0.0002423,2]
[311358591,1705067492257,-500.0,0.0002423,2]
[311358592,1705067492267,-590.15,0.0002423,2]
[311358593,1705067492278,-500.0,0.0002423,2]
[311358594,1705067492288,-500.0,0.0002423,2]
[311358595,1705067492302,-505.02,0.0002423,2]
[311358596,1705067492313,-500.0,0.0002423,2]
[311358597,1705067492324,-500.0,0.0002423,2]
[311358598,1705067492334,-548.99,0.0002423,2]
[311358599,1705067492344,-500.0,0.0002423,2]
[311358600,1705067492355,-543.6,0.0002423,2]
[311358601,1705067492365,-500.0,0.0002423,2]
[311358602,1705067492375,-632.89,0.0002423,2]
[311358603,1705067492385,-500.0,0.0002423,2]
[311358604,1705067492396,-500.0,0.0002423,2]
[311358605,1705067492406,-500.0,0.0002423,2]
[311358606,1705067492417,-1092.03,0.0002423,2]
[311358607,1705067492427,-710.83,0.0002423,2]
[311358608,1705067492437,-545.64,0.0002423,2]
[311358609,1705067492448,-533.57,0.0002423,2]
[311358610,1705067492459,-500.0,0.0002423,2]
[311358611,1705067492469,-500.0,0.0002423,2]
[311358612,1705067492480,-547.06,0.0002423,2]
[311358613,1705067492490,-1007.67,0.0002423,2]
[311358614,1705067492500,-1191.64,0.0002423,2]
[311358615,1705067492511,-500.0,0.0002423,2]
[311358616,1705067492521,-653.87,0.0002423,2]
[311358617,1705067492531,-500.0,0.0002423,2]
[311358618,1705067492543,-567.05,0.0002423,2]
[311358619,1705067492554,-616.57,0.0002423,2]
[311358620,1705067492564,-920.08,0.0002423,2]
[311358621,1705067492574,-500.0,0.0002423,2]
[311358622,1705067492584,-500.0,0.0002423,2]
[311358623,1705067492595,-500.0,0.0002423,2]
[311358624,1705067492605,-500.0,0.0002423,2]
[311358625,1705067492615,-500.0,0.0002423,2]
[311358626,1705067492625,-227.62147413,0.0002423,2]
[311358627,1705067492636,-792.43,0.0002423,2]
[311358628,1705067492646,-500.0,0.0002423,2]
[311358629,1705067492656,-500.0,0.0002423,2]
[311358630,1705067492666,-717.68,0.0002423,2]
[311358631,1705067492676,-500.0,0.0002423,2]
[311358632,1705067492686,-615.74,0.0002423,2]
[311358633,1705067492697,-549.71,0.0002423,2]
[311358634,1705067492707,-500.0,0.0002423,2]
[311358635,1705067492717,-533.96,0.0002423,2]
[311358636,1705067492727,-545.26,0.0002423,2]
[311358637,1705067492738,-500.0,0.0002423,2]
[311358638,1705067492748,-500.0,0.0002423,2]
[311358639,1705067492759,-500.0,0.0002423,2]
[311358640,1705067492770,-500.0,0.0002423,2]
[311358641,1705067492781,-526.4,0.0002423,2]
[311358642,1705067492793,-753.76,0.0002423,2]
[311358643,1705067492803,-619.53,0.0002423,2]
[311358644,1705067492814,-500.0,0.0002423,2]
[311358645,1705067492825,-500.0,0.0002423,2]
[311358646,1705067492835,-500.0,0.0002423,2]
[311358647,1705067492846,-568.06,0.0002423,2]
[311358648,1705067492855,-500.0,0.0002423,2]
[311358649,1705067492865,-500.0,0.0002423,2]
[311358650,1705067492876,-500.0,0.0002423,2]
[311358651,1705067492886,-806.29,0.0002423,2]
[311358652,1705067492896,-500.0,0.0002423,2]
[311358653,1705067492906,-500.0,0.0002423,2]
[311358654,1705067492917,-500.0,0.0002423,2]
[311358655,1705067492927,-500.0,0.0002423,2]
[311358656,1705067492937,-500.0,0.0002423,2]
[311358657,1705067492946,-222.21,0.0002423,2]
[311358658,1705067492956,-500.0,0.0002423,2]
[311358659,1705067492966,-848.08,0.0002423,2]
[311358660,1705067492976,-977.29,0.0002423,2]
[311358661,1705067492986,-500.0,0.0002423,2]
[311358662,1705067492996,-500.0,0.0002423,2]
[311358663,1705067493006,-500.0,0.0002423,2]
[311358664,1705067493016,-500.0,0.0002423,2]
[311358665,1705067493026,-500.0,0.0002423,2]
[311358666,1705067493037,-516.56,0.0002423,2]
[311358667,1705067493049,-300.0,0.0002423,2]
[311358668,1705067493059,-500.0,0.0002423,2]
[311358669,1705067493069,-500.0,0.0002423,2]
[311358670,1705067493079,-764.31,0.0002423,2]
[311358671,1705067493089,-555.48,0.0002423,2]
[311358672,1705067493100,-500.0,0.0002423,2]
[311358673,1705067493110,-500.0,0.0002423,2]
[311358674,1705067493120,-500.0,0.0002423,2]
[311358675,1705067493215,-675.05,0.0002423,2]
[311358676,1705067493225,-500.0,0.0002423,2]
[311358677,1705067493235,-500.0,0.0002423,2]
[311358678,1705067493245,-500.0,0.0002423,2]
[311358679,1705067493256,-500.0,0.0002423,2]
[311358680,1705067493266,-500.0,0.0002423,2]
[311358681,1705067493277,-696.67,0.0002423,2]
[311358682,1705067493287,-611.75649268,0.0002423,2]
[311358683,1705067493299,-549.27,0.0002423,2]
[311358684,1705067493309,-537.5,0.0002423,2]
[311358685,1705067493319,-794.27,0.0002423,2]
[311358686,1705067493329,-165.36,0.0002423,2]
[311358687,1705067493339,-1478.94,0.0002423,2]
[311358688,1705067493349,-2259.65,0.0002423,2]
[311358689,1705067493360,-592.72,0.0002423,2]
[311358690,1705067493370,-500.0,0.0002423,2]
[311358691,1705067493380,-500.0,0.0002423,2]
[311358692,1705067493391,-508.59,0.0002423,2]
[311358693,1705067493401,-500.0,0.0002423,2]
[311358694,1705067493412,-500.0,0.0002423,2]
[311358695,1705067493421,-1082.32,0.0002423,2]
[311358696,1705067493432,-613.36,0.0002423,2]
[311358697,1705067493442,-5818.98,0.0002423,2]
[311358698,1705067493452,-500.0,0.0002423,2]
[311358699,1705067493462,-500.0,0.0002423,2]
[311358700,1705067493472,-500.0,0.0002423,2]
[311358701,1705067493482,-500.0,0.0002423,2]
[311358702,1705067493492,-560.75,0.0002423,2]
[311358703,1705067493502,-500.0,0.0002423,2]
[311358704,1705067493512,-501.17,0.0002423,2]
[311358705,1705067493522,-500.0,0.0002423,2]
[311358706,1705067493533,-941.07,0.0002423,2]
[311358707,1705067493544,-568.7,0.0002423,2]
[311358708,1705067493554,-500.0,0.0002423,2]
[311358709,1705067493565,-500.0,0.0002423,2]
[311358710,1705067493575,-610.82,0.0002423,2]
[311358711,1705067493586,-2025.81,0.0002423,2]
[311358712,1705067493596,-627.28,0.0002423,2]
[311358713,1705067493606,-793.23,0.0002423,2]
[311358714,1705067493616,-500.0,0.0002423,2]
[311358715,1705067493626,-500.0,0.0002423,2]
[311358716,1705067493637,-500.0,0.0002423,2]
[311358717,1705067493647,-500.0,0.0002423,2]
[311358718,1705067493657,-500.0,0.0002423,2]
[311358719,1705067493668,-500.0,0.0002423,2]
[311358720,1705067493678,-500.0,0.0002423,2]
[311358721,1705067493688,-500.0,0.0002423,2]
[311358722,1705067493698,-1268.72,0.0002423,2]
[311358723,1705067493708,-500.0,0.0002423,2]
[311358724,1705067493718,-3058.91,0.0002423,2]
[311358725,1705067493729,-500.0,0.0002423,2]
[311358726,1705067493739,-645.36,0.0002423,2]
[311358727,1705067493750,-500.0,0.0002423,2]
[311358728,1705067493760,-500.0,0.0002423,2]
[311358729,1705067493770,-594.49,0.0002423,2]
[311358730,1705067493780,-500.0,0.0002423,2]
[311358731,1705067493790,-500.0,0.0002423,2]
[311358732,1705067493805,-523.76,0.0002423,2]
[311358733,1705067493816,-967.54,0.0002423,2]
[311358734,1705067493827,-500.0,0.0002423,2]
[311358735,1705067493837,-698.09,0.0002423,2]
[311358736,1705067493848,-1774.52,0.0002423,2]
[311358737,1705067493859,-500.0,0.0002423,2]
[311358738,1705067493869,-500.0,0.0002423,2]
[311358739,1705067493879,-672.72,0.0002423,2]
[311358740,1705067493889,-1366.67,0.0002423,2]
[311358741,1705067493899,-640.24,0.0002423,2]
[311358742,1705067493911,-650.29,0.0002423,2]
[311358743,1705067493921,-1109.5,0.0002423,2]
[311358744,1705067493931,-653.12,0.0002423,2]
[311358745,1705067493941,-500.0,0.0002423,2]
[311358746,1705067493952,-2402.79,0.0002423,2]
[311358747,1705067493962,-500.0,0.0002423,2]
[311358748,1705067493973,-500.0,0.0002423,2]
[311358749,1705067493983,-682.08,0.0002423,2]
[311358750,1705067493993,-500.0,0.0002423,2]
[311358751,1705067494004,-2173.55,0.0002423,2]
[311358752,1705067494014,-604.31,0.0002423,2]
[311358753,1705067494024,-500.0,0.0002423,2]
[311358754,1705067494034,-1581.39,0.0002423,2]
[311358755,1705067494046,-500.0,0.0002423,2]
[311358756,1705067494056,-500.0,0.0002423,2]
[311358757,1705067494067,-1124.99,0.0002423,2]
[311358758,1705067494077,-500.0,0.0002423,2]
[311358759,1705067494088,-500.0,0.0002423,2]
[311358760,1705067494099,-619.21,0.0002423,2]